bitfinex/quotes_BTCUSD_20220103
["timestamp","ask_amount","ask_price","bid_price","bid_amount"]
[1641175710439,0.15664715,46949.0,46948.0,1.02644766]
[1641175710736,0.15664715,46949.0,46948.0,0.82644766]
[1641175713209,0.15664715,46949.0,46948.0,1.02644766]
[1641175714509,0.15664715,46949.0,46948.0,0.77280066]
[1641175715608,0.15664715,46949.0,46948.0,0.76780066]
[1641175715810,0.00499251,46950.0,46949.0,1.37]
[1641175716010,0.00499251,46950.0,46949.0,0.988953]
[1641175716211,0.17045094,46953.0,46949.0,2.216953]
[1641175716434,0.17045094,46953.0,46952.0,0.54762172]
[1641175716631,0.17045094,46953.0,46952.0,0.74022172]
[1641175717232,0.17045094,46953.0,46952.0,1.33035585]
[1641175717634,0.17045094,46953.0,46952.0,1.28775585]
[1641175717933,0.17045094,46953.0,46952.0,1.33035585]
[1641175718134,0.17045094,46953.0,46952.0,2.35022116]
[1641175718334,0.16240246,46953.0,46952.0,2.35022116]
[1641175718534,0.16240246,46953.0,46952.0,1.38357585]
[1641175720099,0.16240246,46953.0,46952.0,2.35021759]
[1641175720291,0.16240246,46953.0,46952.0,1.28357585]
[1641175721191,0.16240246,46953.0,46952.0,1.38357585]
[1641175724923,0.16240246,46953.0,46952.0,2.350208]
[1641175725325,0.16240246,46953.0,46952.0,1.38357585]
[1641175726123,0.16240246,46953.0,46952.0,2.35020173]
[1641175726423,0.37240246,46953.0,46952.0,2.35020173]
[1641175728485,0.1849321,46957.0,46953.0,0.45]
[1641175728683,0.1849321,46957.0,46954.0,0.42620994]
[1641175728884,0.1849321,46957.0,46955.0,0.06000414]
[1641175729083,0.1849321,46957.0,46956.0,0.35209518]
[1641175729286,0.1849321,46957.0,46956.0,0.346353]
[1641175729483,0.1849321,46957.0,46956.0,0.396353]
[1641175730189,0.17685963,46957.0,46956.0,0.396353]
[1641175732444,0.17685963,46957.0,46956.0,0.96365823]
[1641175733045,0.17685963,46957.0,46956.0,0.596353]
[1641175735087,0.17685963,46957.0,46956.0,0.396353]
[1641175735578,0.17685963,46957.0,46956.0,0.346353]
[1641175735778,0.17685963,46957.0,46955.0,0.10645]
[1641175736878,0.17685963,46957.0,46956.0,0.346353]
[1641175737278,0.38685963,46957.0,46956.0,0.346353]
[1641175737479,0.38685963,46957.0,46955.0,0.20645]
[1641175741322,0.38685963,46957.0,46955.0,0.10645]
[1641175742423,0.38685963,46957.0,46956.0,0.346353]
[1641175742886,0.38685963,46957.0,46956.0,0.87637693]
[1641175743487,0.0001,46960.0,46958.0,0.62931751]
[1641175743689,0.0001,46960.0,46959.0,1.90442845]
[1641175743886,0.00807242,46961.0,46959.0,2.06406845]
[1641175744088,0.0069,46969.0,46968.0,0.23749903]
[1641175744292,0.002,46969.0,46968.0,0.23749903]
[1641175744490,0.002,46969.0,46968.0,0.28749903]
[1641175744690,0.002,46969.0,46968.0,0.63380303]
[1641175745490,0.002,46969.0,46968.0,0.67640303]
[1641175745692,0.002,46969.0,46968.0,0.96773677]
[1641175746533,0.212,46969.0,46968.0,0.388904]
[1641175747834,0.002,46969.0,46968.0,0.438904]
[1641175748035,0.002,46969.0,46968.0,0.488904]
[1641175749034,0.002,46969.0,46968.0,0.77606089]
[1641175750877,0.002,46969.0,46968.0,0.488904]
[1641175759690,0.0002,46969.0,46968.0,0.488904]
[1641175767281,0.0001,46970.0,46968.0,0.488904]
[1641175767481,0.0001,46970.0,46969.0,0.65199021]
[1641175767780,0.0001,46970.0,46969.0,0.70520221]
[1641175768381,0.0001,46970.0,46969.0,0.71155105]
[1641175773881,0.0001,46970.0,46969.0,0.40586484]
[1641175775083,0.0001,46970.0,46969.0,0.68117918]
[1641175782495,0.0001,46970.0,46969.0,0.68019074]
[1641175782697,0.0001,46970.0,46969.0,0.67483034]
[1641175792030,0.0001,46970.0,46969.0,0.72253034]
[1641175792832,0.0001,46970.0,46969.0,0.72920781]
[1641175793032,0.0001,46970.0,46969.0,0.72253034]
[1641175798585,0.00806501,46973.0,46971.0,0.03192408]
[1641175798831,0.00806501,46973.0,46972.0,0.44721]
[1641175799028,0.00806501,46973.0,46972.0,0.49721]
[1641175799632,0.00806501,46973.0,46972.0,1.22124578]
[1641175800234,0.002,46979.0,46978.0,0.23816325]
[1641175800629,0.002,46979.0,46978.0,0.33816325]
[1641175802135,0.002,46979.0,46978.0,0.39136725]
[1641175802885,0.002,46979.0,46978.0,0.43906725]
[1641175803683,0.002,46979.0,46978.0,0.78537125]
[1641175807544,0.002,46979.0,46978.0,0.98537125]
[1641175809144,0.0001,46980.0,46979.0,0.66]
[1641175809445,0.0001,46980.0,46979.0,0.4259198]
[1641175811287,0.0001,46980.0,46979.0,0.6259198]
[1641175813089,0.0001,46980.0,46979.0,0.73286331]
[1641175813290,0.0001,46980.0,46979.0,1.3220198]
[1641175813590,0.002,46989.0,46979.0,1.3220198]
[1641175813591,0.002,46989.0,46984.0,0.253187]
[1641175813844,0.002,46989.0,46985.0,1.214866]
[1641175814042,0.002,46989.0,46987.0,0.56083987]
[1641175814244,0.002,46989.0,46988.0,0.394004]
[1641175814644,0.002,46989.0,46988.0,0.444004]
[1641175814845,0.002,46989.0,46988.0,0.05]
[1641175816545,0.002,46989.0,46988.0,0.039318]
[1641175817247,0.348304,46989.0,46985.0,0.03192384]
[1641175817446,0.33572913,46988.0,46985.0,0.03192384]
[1641175817685,0.346304,46987.0,46985.0,0.03192384]
[1641175817881,0.31053534,46986.0,46981.0,0.103208]
[1641175818281,0.002,46989.0,46981.0,0.153208]
[1641175818479,0.346304,46988.0,46981.0,0.153208]
[1641175818680,0.3244965,46987.0,46981.0,0.153208]
[1641175818880,0.002,46989.0,46983.0,0.03192524]
[1641175819081,0.01786061,46984.0,46983.0,0.03192524]
[1641175819382,0.0012378,46983.0,46979.0,0.1]
[1641175819581,0.00121363,46981.0,46972.0,0.262853]
[1641175819786,0.29062185,46980.0,46972.0,0.262853]
[1641175819982,0.31446822,46979.0,46973.0,0.05]
[1641175820884,0.31446822,46979.0,46975.0,0.06385486]
[1641175821937,0.31446822,46979.0,46973.0,0.1]
[1641175821938,0.31446822,46979.0,46978.0,1.87305927]
[1641175822137,0.31446822,46979.0,46978.0,1.97305927]
[1641175822639,0.31446822,46979.0,46978.0,0.1]
[1641175822844,0.66077222,46979.0,46978.0,0.1]
[1641175823039,0.66077222,46979.0,46978.0,0.05]
[1641175823741,0.66077222,46979.0,46973.0,0.05]
[1641175823940,0.31446822,46979.0,46973.0,0.05]
[1641175824141,0.31446822,46979.0,46974.0,0.03193087]
[1641175824644,0.346304,46978.0,46973.0,0.1]
[1641175825114,0.00129736,46975.0,46973.0,0.05]
[1641175825305,0.00129736,46975.0,46970.0,0.05]
[1641175825306,0.346304,46974.0,46970.0,0.05]
[1641175825510,0.00123733,46970.0,46962.0,0.24971026]
[1641175826006,0.00123733,46970.0,46962.0,0.29971026]
[1641175826809,0.00123733,46970.0,46965.0,0.08516138]
[1641175827009,0.40538138,46977.0,46965.0,0.05]
[1641175827207,0.346304,46976.0,46971.0,0.3059428]
[1641175827709,0.346304,46976.0,46971.0,0.3559428]
[1641175828112,0.346304,46976.0,46971.0,0.05]
[1641175828309,0.04895096,46978.0,46971.0,0.05]
[1641175828939,0.10217596,46978.0,46971.0,0.05]
[1641175829134,0.10217596,46978.0,46968.0,2.64498423]
[1641175829334,0.04895096,46978.0,46970.0,0.03193339]
[1641175830639,0.04895096,46978.0,46968.0,2.67691908]
[1641175831436,0.04895096,46978.0,46968.0,2.64498423]
[1641175832236,0.04895096,46978.0,46968.0,2.67691901]
[1641175832435,0.04895096,46978.0,46968.0,2.64498423]
[1641175833082,0.00125934,46972.0,46968.0,2.64498423]
[1641175833981,0.00125934,46972.0,46968.0,2.67691886]
[1641175837457,0.00125934,46972.0,46968.0,2.64498423]
[1641175841000,0.00125934,46972.0,46968.0,0.05]
[1641175842397,0.346304,46971.0,46968.0,0.05]
[1641175842599,0.2991095,46970.0,46968.0,0.05]
[1641175842798,0.346304,46969.0,46968.0,0.05]
[1641175842998,0.346304,46969.0,46964.0,0.08193723]
[1641175843199,0.00125934,46972.0,46964.0,0.03193723]
[1641175843401,0.346304,46971.0,46964.0,0.03193723]
[1641175843603,0.30508646,46970.0,46964.0,0.03193723]
[1641175843838,0.346304,46969.0,46964.0,0.03193723]
[1641175844041,0.00125934,46972.0,46964.0,0.03193723]
[1641175844242,0.346304,46971.0,46964.0,0.03193723]
[1641175844440,0.29759908,46970.0,46964.0,0.03193723]
[1641175844840,0.00125934,46972.0,46964.0,0.03193723]
[1641175845039,0.346304,46971.0,46964.0,0.03193723]
[1641175845240,0.31043857,46970.0,46964.0,0.03193723]
[1641175845439,0.346304,46969.0,46964.0,0.03193723]
[1641175846346,0.00126648,46963.0,46961.0,0.05]
[1641175846542,0.0477,46962.0,46952.0,0.00659635]
[1641175846742,0.29946915,46961.0,46951.0,0.17298516]
[1641175846940,0.29946915,46961.0,46952.0,0.00718126]
[1641175847140,0.29946915,46961.0,46951.0,0.1722478]
[1641175847340,0.24073705,46959.0,46952.0,0.00629172]
[1641175847612,0.24073705,46959.0,46951.0,0.17336193]
[1641175847805,0.31396241,46961.0,46954.0,0.08518043]
[1641175848006,0.31396241,46961.0,46953.0,0.053238]
[1641175849011,0.31396241,46961.0,46956.0,0.03194221]
[1641175849207,0.01786061,46957.0,46956.0,0.03194221]
[1641175849405,0.01786061,46957.0,46955.0,0.106477]
[1641175849605,0.52396241,46961.0,46955.0,0.106477]
[1641175849905,0.52396241,46961.0,46955.0,0.156477]
[1641175850106,0.52396241,46961.0,46957.0,0.03194344]
[1641175850306,0.52396241,46961.0,46955.0,0.05]
[1641175850506,0.50574654,46961.0,46956.0,0.106476]
[1641175850708,0.21,46961.0,46956.0,0.106476]
[1641175850906,0.50853874,46961.0,46956.0,0.106476]
[1641175851356,0.50853874,46961.0,46958.0,0.03194214]
[1641175851559,0.346304,46960.0,46958.0,0.03194214]
[1641175851852,0.29659216,46959.0,46958.0,0.03194214]
[1641175852054,0.29659216,46959.0,46955.0,0.05]
[1641175852254,0.346304,46958.0,46955.0,0.05]
[1641175852456,0.346304,46958.0,46954.0,0.03194476]
[1641175852653,0.446304,46958.0,46954.0,0.03194476]
[1641175852854,0.446304,46958.0,46950.0,0.06388952]
[1641175853054,0.346304,46958.0,46950.0,0.06388952]
[1641175853255,0.29788736,46959.0,46950.0,0.06388952]
[1641175854061,0.29788736,46959.0,46951.0,0.053243]
[1641175854257,0.346304,46958.0,46951.0,0.106486]
[1641175854457,0.346304,46958.0,46951.0,0.156486]
[1641175854856,0.346304,46958.0,46953.0,2.12912599]
[1641175855100,0.29788736,46959.0,46955.0,0.03194452]
[1641175855292,0.29788736,46959.0,46953.0,2.17912599]
[1641175855494,0.29788736,46959.0,46953.0,0.05]
[1641175855692,0.346304,46958.0,46953.0,0.05]
[1641175855891,0.346304,46958.0,46951.0,0.05]
[1641175856091,0.346304,46958.0,46950.0,0.06388952]
[1641175856492,0.346304,46958.0,46951.0,0.053243]
[1641175856695,0.346304,46958.0,46952.0,0.03194643]
[1641175856893,0.446304,46958.0,46952.0,0.03194643]
[1641175860574,0.446304,46958.0,46950.0,0.03194786]
[1641175860875,0.446304,46958.0,46951.0,0.05]
[1641175861076,0.053248,46957.0,46951.0,0.05]
[1641175861275,0.00129209,46953.0,46947.0,0.3109787]
[1641175861476,0.00129209,46953.0,46947.0,0.05]
[1641175861674,0.00129209,46953.0,46945.0,0.0047]
[1641175861977,0.00129209,46953.0,46943.0,0.11714973]
[1641175862176,0.25929629,46945.0,46940.0,0.10683]
[1641175862379,0.00126364,46942.0,46940.0,0.00033]
[1641175862606,0.346304,46941.0,46940.0,0.00033]
[1641175863398,0.36416461,46941.0,46940.0,0.00033]
[1641175864401,0.6837848,46941.0,46940.0,0.00033]
[1641175864706,1.26750524,46941.0,46940.0,0.00033]
[1641175866855,0.76750524,46941.0,46940.0,0.00033]
[1641175867854,0.81520524,46941.0,46940.0,0.00033]
[1641175868055,1.94320524,46941.0,46940.0,0.00033]
[1641175869257,2.15320524,46941.0,46940.0,0.00033]
[1641175871302,2.79231524,46941.0,46940.0,0.00033]
[1641175871703,2.79231524,46941.0,46935.0,0.00033]
[1641175871704,3.29231524,46941.0,46933.0,0.00044]
[1641175871904,0.053273,46935.0,46931.0,0.00085]
[1641175872103,0.01786061,46932.0,46931.0,0.00085]
[1641175872303,0.36416461,46932.0,46931.0,0.00085]
[1641175872706,0.66756195,46932.0,46931.0,0.00085]
[1641175872904,0.86416461,46932.0,46931.0,0.00085]
[1641175874158,1.1686696,46932.0,46931.0,0.00085]
[1641175874354,1.16818644,46932.0,46931.0,0.00085]
[1641175874555,1.16583583,46932.0,46931.0,0.00085]
[1641175874755,1.16669669,46932.0,46931.0,0.00085]
[1641175874956,0.86416461,46932.0,46931.0,0.00085]
[1641175875159,1.16859238,46932.0,46931.0,0.00085]
[1641175875355,0.86416461,46932.0,46931.0,0.00085]
[1641175875556,1.17123249,46932.0,46931.0,0.00085]
[1641175875758,0.86416461,46932.0,46931.0,0.00085]
[1641175876558,0.846304,46932.0,46931.0,0.00085]
[1641175876760,0.00812678,46936.0,46931.0,0.00085]
[1641175876959,0.346304,46935.0,46931.0,0.00085]
[1641175877460,0.346304,46935.0,46931.0,0.32069318]
[1641175877709,0.00812678,46936.0,46935.0,0.30045114]
[1641175877903,0.00812678,46936.0,46935.0,0.84585956]
[1641175878110,0.00812678,46936.0,46935.0,0.444004]
[1641175878302,0.85111,46941.0,46935.0,0.0977]
[1641175878506,0.00812673,46940.0,46935.0,0.0977]
[1641175878902,0.346304,46939.0,46936.0,0.03195537]
[1641175879103,0.01786061,46937.0,46936.0,0.08195537]
[1641175879302,0.36416461,46937.0,46936.0,0.08195537]
[1641175880102,0.36416461,46937.0,46936.0,0.13521437]
[1641175880704,0.346304,46937.0,46936.0,0.13521437]
[1641175880903,0.00812673,46940.0,46936.0,0.13521437]
[1641175881103,0.346304,46939.0,46936.0,0.13521437]
[1641175882643,0.346304,46939.0,46938.0,2.41557682]
[1641175882845,0.01786061,46939.0,46938.0,2.41557682]
[1641175883043,0.01786061,46939.0,46938.0,2.46557682]
[1641175884045,0.00812673,46940.0,46938.0,2.46557682]
[1641175884248,0.84911,46941.0,46940.0,0.00607492]
[1641175884446,0.84911,46941.0,46940.0,0.394004]
[1641175884647,0.84911,46941.0,46940.0,0.52595257]
[1641175885102,0.84411,46941.0,46940.0,0.52595257]
[1641175885502,0.84411,46941.0,46940.0,0.17964857]
[1641175888503,0.84411,46941.0,46940.0,0.46568764]
[1641175888703,0.84411,46941.0,46940.0,0.81673167]
[1641175888952,0.84411,46941.0,46940.0,0.52595257]
[1641175889151,0.84411,46941.0,46940.0,0.17964857]
[1641175889555,0.84411,46941.0,46940.0,0.13194857]
[1641175889756,1.190414,46941.0,46940.0,0.13194857]
[1641175890156,1.190414,46941.0,46940.0,0.08194857]
[1641175890358,1.50310551,46941.0,46935.0,0.06390904]
[1641175890560,0.346304,46940.0,46937.0,0.05]
[1641175890754,0.346304,46940.0,46935.0,0.06390904]
[1641175892602,0.346304,46940.0,46937.0,0.0319566]
[1641175892894,0.01786061,46938.0,46937.0,0.0319566]
[1641175893694,0.01786061,46938.0,46935.0,2.49078052]
[1641175893894,0.01786061,46936.0,46935.0,2.49078052]
[1641175894095,0.01786061,46936.0,46935.0,2.45882291]
[1641175894294,0.01786061,46936.0,46935.0,2.45873271]
[1641175894493,0.01786061,46936.0,46935.0,2.45864251]
[1641175894893,0.01786061,46936.0,46935.0,2.40882291]
[1641175895096,0.346304,46935.0,46933.0,0.05]
[1641175895296,0.31062657,46934.0,46933.0,0.0499098]
[1641175895496,0.65693057,46934.0,46933.0,0.0498196]
[1641175896742,0.65693057,46934.0,46930.0,0.00044]
[1641175896939,0.346304,46933.0,46930.0,0.00044]
[1641175898041,0.29691446,46932.0,46930.0,0.032401]
[1641175898247,0.63946617,46932.0,46930.0,0.00044]
[1641175898543,0.70105001,46932.0,46930.0,0.00044]
[1641175899442,0.394004,46932.0,46930.0,0.00044]
[1641175899842,0.7129921,46932.0,46930.0,0.00044]
[1641175900116,0.394004,46932.0,46930.0,0.00044]
[1641175900503,0.6974186,46932.0,46930.0,0.00044]
[1641175901104,0.394004,46932.0,46930.0,0.00044]
[1641175901704,0.69563377,46932.0,46930.0,0.00044]
[1641175901903,0.394004,46932.0,46930.0,0.00044]
[1641175902306,0.69809569,46932.0,46930.0,0.00044]
[1641175902504,0.394004,46932.0,46930.0,0.00044]
[1641175903967,0.0477,46932.0,46930.0,0.00044]
[1641175904168,0.394004,46932.0,46930.0,0.00044]
[1641175904367,0.394004,46932.0,46930.0,0.03240118]
[1641175904567,0.394004,46932.0,46930.0,0.00044]
[1641175904767,0.39523354,46932.0,46930.0,0.00044]
[1641175905166,0.39023354,46932.0,46930.0,0.00044]
[1641175908607,0.49023354,46932.0,46930.0,0.00044]
[1641175909209,0.39023354,46932.0,46930.0,0.00044]
[1641175909408,0.49023354,46932.0,46930.0,0.00044]
[1641175909608,0.39023354,46932.0,46930.0,0.00044]
[1641175910009,0.346304,46932.0,46930.0,0.00044]
[1641175911475,0.014,46934.0,46930.0,0.08566557]
[1641175911661,0.014,46934.0,46932.0,0.00599102]
[1641175911860,0.014,46934.0,46933.0,0.00631545]
[1641175912065,0.014,46934.0,46933.0,0.00716993]
[1641175912261,0.014,46934.0,46933.0,0.26945158]
[1641175912463,0.014,46934.0,46933.0,0.27486242]
[1641175912661,0.014,46934.0,46933.0,0.66575558]
[1641175912863,0.014,46934.0,46933.0,0.67182939]
[1641175913061,0.014,46934.0,46933.0,0.66575558]
[1641175913260,0.014,46934.0,46933.0,0.67133636]
[1641175914066,0.014,46934.0,46933.0,0.95798904]
[1641175914564,0.014,46934.0,46933.0,0.95993873]
[1641175914762,0.014,46934.0,46933.0,0.96034704]
[1641175915414,0.014,46934.0,46933.0,0.67365017]
[1641175917619,0.014,46934.0,46933.0,0.67280579]
[1641175918019,0.014,46934.0,46933.0,0.32650179]
[1641175918220,0.00807148,46938.0,46933.0,0.32650179]
[1641175918418,0.00807148,46938.0,46935.0,0.053258]
[1641175918619,0.00807148,46938.0,46935.0,0.05]
[1641175919061,0.00807148,46938.0,46934.0,0.156514]
[1641175919460,0.84218148,46941.0,46934.0,0.156514]
[1641175919660,0.84218148,46941.0,46937.0,0.053256]
[1641175919862,0.346304,46940.0,46938.0,0.0319534]
[1641175921065,0.346304,46940.0,46939.0,0.053256]
[1641175921263,0.346304,46940.0,46939.0,0.103256]
[1641175921672,0.346304,46940.0,46939.0,0.153256]
[1641175923820,0.84218148,46941.0,46940.0,0.00610738]
[1641175924019,0.84218148,46941.0,46940.0,0.03962769]
[1641175924219,0.84218148,46941.0,46940.0,0.03194762]
[1641175925317,0.84218148,46941.0,46940.0,0.13844062]
[1641175925722,0.84218148,46941.0,46940.0,0.48474462]
[1641175932514,0.84218148,46941.0,46940.0,0.13844062]
[1641175934160,0.84218148,46941.0,46940.0,0.14614319]
[1641175934556,0.84218148,46941.0,46940.0,0.13844062]
[1641175937811,0.84218148,46941.0,46940.0,0.14512366]
[1641175938409,0.84218148,46941.0,46940.0,0.56168201]
[1641175938610,0.84218148,46941.0,46940.0,0.33130473]
[1641175939309,0.84218148,46941.0,46940.0,0.18614062]
[1641175944762,0.84218148,46941.0,46940.0,0.13844062]
[1641175945213,1.18848548,46941.0,46940.0,0.13844062]
[1641175946008,1.18348548,46941.0,46940.0,0.23844062]
[1641175946710,1.18348548,46941.0,46940.0,0.13844062]
[1641175946911,1.18475542,46941.0,46935.0,0.03195754]
[1641175947109,0.346304,46940.0,46930.0,0.10099633]
[1641175947311,0.346304,46940.0,46930.0,0.09629633]
[1641175947511,0.346304,46940.0,46930.0,0.00044]
[1641175947911,0.346304,46940.0,46937.0,0.03195472]
[1641175948309,0.83718148,46941.0,46937.0,0.03195472]
[1641175948509,0.346304,46940.0,46937.0,0.03195472]
[1641175948709,0.83718148,46941.0,46937.0,0.03195472]
[1641175949265,0.83718148,46941.0,46939.0,0.053254]
[1641175949466,0.83718148,46941.0,46939.0,0.08520632]
[1641175949664,0.83718148,46941.0,46939.0,0.18520632]
[1641175950067,0.83718148,46941.0,46939.0,0.23846032]
[1641175950365,0.83718148,46941.0,46939.0,0.18520632]
[1641175950568,0.346304,46940.0,46939.0,0.18520632]
[1641175951365,0.346304,46940.0,46934.0,0.053261]
[1641175951566,0.346304,46940.0,46933.0,0.106515]
[1641175952710,0.346304,46940.0,46936.0,0.13847262]
[1641175952911,0.346304,46940.0,46934.0,0.06390775]
[1641175953510,0.346304,46940.0,46936.0,1.99511238]
[1641175953713,0.83718148,46941.0,46936.0,2.04511238]
[1641175953910,0.83718148,46941.0,46936.0,2.09511238]
[1641175954210,0.83718148,46941.0,46937.0,0.0852096]
[1641175954410,0.83718148,46941.0,46937.0,0.053256]
[1641175954813,0.83718148,46941.0,46937.0,0.11716134]
[1641175955011,0.83718148,46941.0,46937.0,0.06390534]
[1641175955814,0.83718148,46941.0,46939.0,0.053257]
[1641175956012,0.83718148,46941.0,46939.0,0.08521047]
[1641175956212,0.83718148,46941.0,46939.0,0.13846547]
[1641175956462,0.83718148,46941.0,46939.0,0.13521047]
[1641175956660,0.83718148,46941.0,46939.0,0.08521047]
[1641175957061,0.83218148,46941.0,46939.0,0.13521047]
[1641175957662,0.83218148,46941.0,46938.0,0.05]
[1641175957663,0.6839542,46940.0,46938.0,0.05]
[1641175957865,0.66614718,46939.0,46938.0,0.05]
[1641175958063,0.394004,46939.0,46932.0,0.106518]
[1641175958279,0.394004,46939.0,46933.0,0.05]
[1641175958663,0.23935825,46935.0,46933.0,0.05]
[1641175958863,0.346304,46934.0,46933.0,0.05]
[1641175959064,0.36416461,46934.0,46933.0,0.05]
[1641175961120,0.36416461,46934.0,46932.0,0.03195967]
[1641175961312,0.01786061,46933.0,46932.0,0.03195967]
[1641175961512,0.36416461,46933.0,46932.0,0.08195967]
[1641175961715,0.36416461,46933.0,46932.0,0.13195967]
[1641175963115,0.36416461,46933.0,46932.0,0.08195967]
[1641175963316,0.36416461,46933.0,46932.0,0.03195967]
[1641175963952,0.36416461,46933.0,46930.0,0.03240017]
[1641175964153,0.64786061,46932.0,46930.0,0.03240017]
[1641175964355,0.99416461,46932.0,46930.0,0.03240017]
[1641175964953,0.36416461,46932.0,46930.0,0.03240017]
[1641175974166,1.26989,46929.0,46928.0,0.00044]
[1641175974366,2.791894,46929.0,46928.0,0.00044]
[1641175974566,3.531004,46929.0,46928.0,0.00044]
[1641175974765,3.531004,46929.0,46924.0,9e-05]
[1641175974766,0.077269,46927.0,46924.0,9e-05]
[1641175974965,0.34751588,46925.0,46913.0,0.00055]
[1641175975211,1.05097461,46924.0,46913.0,0.00055]
[1641175975612,1.15097461,46924.0,46913.0,0.00055]
[1641175976309,1.15097461,46924.0,46922.0,0.00044]
[1641175976909,1.36210931,46924.0,46922.0,0.00044]
[1641175977310,1.05097461,46924.0,46922.0,0.00044]
[1641175978509,1.3447544,46924.0,46922.0,0.00044]
[1641175980862,1.3447544,46924.0,46920.0,0.03196723]
[1641175981060,0.01786061,46921.0,46916.0,0.2503]
[1641175981260,0.01786061,46917.0,46916.0,0.3503]
[1641175981560,1.03437211,46917.0,46916.0,0.3503]
[1641175982608,1.24437211,46917.0,46916.0,0.3503]
[1641175984204,0.84911,46917.0,46916.0,0.3503]
[1641175986967,0.84911,46917.0,46916.0,0.398]
[1641175987864,0.84911,46917.0,46916.0,0.744304]
[1641175988265,0.0080404,46921.0,46917.0,1.17]
[1641175988466,0.0080404,46921.0,46920.0,0.68727092]
[1641175988665,0.0080404,46921.0,46920.0,0.83497092]
[1641175989264,0.0080404,46921.0,46920.0,1.15012109]
[1641175989666,0.0080404,46921.0,46920.0,1.18207514]
[1641175990313,0.0046,46937.0,46923.0,0.06391911]
[1641175990513,0.00804034,46925.0,46924.0,0.44957]
[1641175990711,0.00804034,46925.0,46924.0,0.49957]
[1641175992015,0.21804034,46925.0,46924.0,0.49957]
[1641175992211,0.21,46925.0,46924.0,0.49957]
[1641175995278,0.85831408,46939.0,46924.0,0.49957]
[1641175995279,0.0852,46942.0,46928.0,0.00121752]
[1641175995478,0.0852,46942.0,46928.0,1.61848352]
[1641175995681,0.03200528,46944.0,46928.0,1.61848352]
[1641175995682,0.03200528,46944.0,46941.0,0.29059099]
[1641175995880,0.03200528,46944.0,46941.0,0.34059099]
[1641175996080,0.03200528,46944.0,46941.0,0.39059099]
[1641175996280,0.03200528,46944.0,46943.0,0.29631778]
[1641175996482,0.03200528,46944.0,46943.0,1.23751837]
[1641175996686,0.00022,46949.0,46943.0,2.10264389]
[1641175996883,0.00022,46949.0,46948.0,0.00123338]
[1641175997083,0.00022,46949.0,46948.0,0.39523738]
[1641175997486,0.00022,46949.0,46948.0,0.49523738]
[1641175997720,0.00022,46949.0,46948.0,0.494004]
[1641175998820,0.00022,46949.0,46948.0,0.1477]
[1641175999018,0.00022,46949.0,46940.0,0.001201]
[1641176000018,0.00022,46949.0,46944.0,0.03194734]
[1641176000224,0.00022,46949.0,46943.0,0.32381543]
[1641176000419,0.00022,46949.0,46944.0,0.346304]
[1641176000620,0.00022,46949.0,46943.0,0.32381543]
[1641176001119,0.00022,46949.0,46946.0,0.03194684]
[1641176001353,0.00022,46949.0,46946.0,0.09583786]
[1641176001555,0.00022,46949.0,46946.0,0.19583786]
[1641176002155,0.05444967,46957.0,46947.0,0.053244]
[1641176002359,0.58059466,46951.0,46950.0,0.03194633]
[1641176002558,0.58059466,46951.0,46948.0,0.05]
[1641176002559,0.92689866,46951.0,46948.0,0.05]
[1641176002757,0.58059466,46951.0,46948.0,0.05]
[1641176002957,0.58059466,46951.0,46947.0,0.05]
[1641176003157,0.58059466,46951.0,46946.0,0.153246]
[1641176003358,0.58059466,46951.0,46946.0,0.053246]
[1641176003556,0.58059466,46951.0,46946.0,0.103246]
[1641176003958,0.58059466,46950.0,46946.0,0.053246]
[1641176004156,0.58059466,46950.0,46947.0,0.03194775]
[1641176004356,0.58059466,46950.0,46948.0,0.053244]
[1641176004757,0.58059466,46951.0,46948.0,0.103244]
[1641176006202,0.55559466,46951.0,46948.0,0.103244]
[1641176006622,0.6967136,46954.0,46949.0,0.06388685]
[1641176006804,0.6967136,46954.0,46952.0,0.053239]
[1641176007005,0.346304,46953.0,46952.0,0.103239]
[1641176007609,0.346304,46953.0,46952.0,0.05]
[1641176010673,0.346304,46953.0,46952.0,0.103239]
[1641176010876,0.346304,46953.0,46952.0,0.05]
[1641176010877,0.71377328,46953.0,46952.0,0.05]
[1641176011076,0.81377328,46953.0,46948.0,0.1]
[1641176011275,1.446304,46949.0,46948.0,0.1]
[1641176011478,1.494004,46949.0,46948.0,0.1]
[1641176011674,1.594004,46949.0,46948.0,0.1]
[1641176011880,2.56992537,46949.0,46948.0,0.1]
[1641176012076,2.62318437,46949.0,46948.0,0.1]
[1641176012475,2.56544077,46949.0,46948.0,0.1]
[1641176014608,2.51218177,46949.0,46948.0,0.1]
[1641176014807,2.41218177,46949.0,46948.0,0.1]
[1641176015006,2.41218177,46949.0,46948.0,0.15]
[1641176020221,1.31218177,46949.0,46948.0,0.15]
[1641176022422,1.31218177,46949.0,46948.0,0.1]
[1641176023424,1.41218177,46949.0,46948.0,0.1]
[1641176026265,1.31218177,46949.0,46948.0,0.1]
[1641176027067,0.985274,46949.0,46948.0,0.2]
[1641176028114,0.985274,46949.0,46948.0,0.15]
[1641176028115,1.00159337,46949.0,46948.0,0.15]
[1641176029114,1.00559337,46949.0,46948.0,0.15]
[1641176030015,1.58917475,46949.0,46948.0,0.15]
[1641176033164,1.00559337,46949.0,46948.0,0.15]
[1641176034765,1.00559337,46949.0,46948.0,0.1]
[1641176035209,1.5885247,46949.0,46948.0,0.1]
[1641176035811,1.00559337,46949.0,46948.0,0.15]
[1641176039562,1.00559337,46949.0,46948.0,0.1]
[1641176039764,1.36559337,46949.0,46948.0,0.02825503]
[1641176039966,1.70303187,46949.0,46948.0,0.02825503]
[1641176040164,1.69903187,46949.0,46948.0,0.02825503]
[1641176040465,2.09668428,46949.0,46948.0,0.02825503]
[1641176040666,2.14994128,46949.0,46948.0,0.02825503]
[1641176041065,1.45250278,46949.0,46948.0,0.02825503]
[1641176041265,1.45250278,46949.0,46929.0,0.153157]
[1641176041266,0.00122292,46946.0,46929.0,0.153157]
[1641176041474,0.26976869,46938.0,46929.0,0.09989]
[1641176041667,0.26976869,46938.0,46930.0,0.03195963]
[1641176041668,1.12631937,46936.0,46930.0,0.03195963]
[1641176041866,0.65281992,46936.0,46929.0,0.09989]
[1641176042467,0.01631937,46931.0,46929.0,0.09989]